Cogmind - Beta 14 @@@ ROGUE MODE // 2024.08.08 @ 03:50:29 Player: Byrnorthil Result: Destroyed by S2-FBL(R) with Subdweller Laser Performance ------------- Evolutions (0) 0 Regions Visited (2) 400 Robots Destroyed (24) 120 Value Destroyed (549) 549 Prototype IDs (2) 40 Alien Tech Used (0) 0 Bonus (0) 0 TOTAL SCORE: 1109 Bonus ------- None Cogmind --------- Core Integrity 0/250 Matter 300/300 Energy 100/100 System Corruption 0% Temperature Cool (6) Movement Walking (190) Ox1 Location -10/Subcaves Parts ------- > --- POWER (1) -------- (None) > --- PROPULSION (2) --- Aluminum Leg > --- UTILITY (2) ------ Medium Storage Unit Subdweller Optics > --- WEAPON (2) ------- Maul > --- INVENTORY (10) --- Heat Sink Heavy Assault Rifle Heavy Assault Rifle Heavy Assault Rifle Subdweller Machine Gun Grenade Launcher Maul Scrap Shield Fragment (45) Peak State ------------ > --- POWER ------------ Ion Engine > --- PROPULSION ------- Aluminum Leg Aluminum Leg > --- UTILITY ---------- Medium Storage Unit Seismic Detector > --- WEAPON ----------- Heavy Assault Rifle Heavy Assault Rifle > --- INVENTORY -------- Aluminum Leg Aluminum Leg Aluminum Leg Heat Sink Beam Cannon Heavy Assault Rifle Heavy Assault Rifle Grenade Launcher Maul Maul [Rating: 10] Favorites ----------- Power Ion Engine Engine Ion Engine Propulsion Aluminum Leg Leg Aluminum Leg Utility Medium Storage Unit Device Seismic Detector Storage Medium Storage Unit Weapon Heavy Assault Rifle Energy Gun Medium Laser Energy Cannon Beam Cannon Ballistic Gun Heavy Assault Rifle Launcher Grenade Launcher Special Weapon Mining Laser Impact Weapon Maul Build | -11 -10 -10 ------- Run | Yrd Mat Sub Slots Evolved . | . . . Power . | . . . Propulsion . | . . . Utility . | . . . Weapon . | . . . Parts Attached 23 | 7 10 6 Power 2 | 1 1 . Engine 2 | 1 1 . Core . | . . . Reactor . | . . . Propulsion 6 | 2 1 3 Treads . | . . . Leg 6 | 2 1 3 Wheel . | . . . Hover . | . . . Flight . | . . . Utility 4 | 2 1 1 Device 2 | 1 . 1 Storage 2 | 1 1 . Processor . | . . . Hackware . | . . . Protection . | . . . Artifact . | . . . Weapon 11 | 2 7 2 Energy Gun 1 | 1 . . Energy Cannon 1 | . 1 . Ballistic Gun 4 | 1 3 . Ballistic Cannon . | . . . Launcher 2 | . 2 . Special Weapon 2 | . 1 1 Impact Weapon 1 | . . 1 Slashing Weapon . | . . . Piercing Weapon . | . . . Special Melee Weapon . | . . . Unidentified Prototypes . | . . . Parts Lost 9 | . 1 8 Power 2 | . 1 1 Propulsion 4 | . . 4 Utility 1 | . . 1 Weapon 2 | . . 2 Highest Loss Streak 5 | . 1 5 To Critical Strikes . | . . . Average Slot Usage (%) 91 | . 98 75 Engine 10 | . 12 3 Leg 26 | . 28 23 Device 13 | . 14 12 Storage 14 | . 14 14 Energy Cannon 6 | . 9 . Ballistic Gun 12 | . 16 3 Special Weapon 2 | . . 7 Impact Weapon 3 | . . 10 Peak Build Rating 10 | 7 10 10 Average Rating 8 | 4 8 7 On Entrance 5 | . 7 9 Naked Turns . | . . . Heaviest Build 22 | 12 22 22 Greatest Support 20 | 20 20 20 Greatest Overweight (x) 1 | . 1 1 Average Overweight (x) . | . . . Largest Inventory Capacity 10 | 8 10 10 Average Capacity 9 | 6 9 10 Most Carried 10 | 4 10 10 Average Carried 8 | 2 8 8 Final Capacity 10 | 8 10 10 Final Carried 10 | 4 10 8 Class Distribution -------------------- 100% | Mutant Dominant Class ---------------- Mutant | -10/Materials Mutant | -10/Subcaves Resources | -11 -10 -10 ----------- Run | Yrd Mat Sub Matter Collected 498 | 272 191 35 Remotely . | . . . Salvage Created 624 | 14 471 139 Parts 49 | 4 36 9 Haulers Intercepted 2 | . 2 . Recyclers Shooed . | . . . Parts Field Recycled . | . . . Retrieved Matter . | . . . Parts Self-Destructed . | . . . Prevented . | . . . Kills | -11 -10 -10 ------- Run | Yrd Mat Sub Combat Hostiles Destroyed 16 | . 11 5 Melee 2 | . . 2 Guns 4 | . 4 . Cannons 3 | . 3 . AOE 4 | . 4 . Classes Destroyed 8 | 1 6 1 Worker 1 | . 1 . Tunneler 1 | 1 . . Hauler 2 | . 2 . Recycler 1 | . 1 . Watcher 3 | . 3 . Swarmer 6 | . 6 . Grunt 5 | . 5 . Subdweller 5 | . . 5 Best Kill Streak 4 | 1 4 2 Combat Bots Only 3 | . 3 2 Max Kills in Single Turn 3 | 1 3 1 Gunslinging . | . . . Exploded 3 | . 3 . Melee 1 | . . 1 Uniques/NPCs Destroyed . | . . . Combat | -11 -10 -10 -------- Run | Yrd Mat Sub Hostile Shots Fired 100 | . 39 61 Missed 42 | . 16 26 Damage Taken 1298 | . 423 875 Core 250 | . 87 163 Absorbed by Shields . | . . . Core Remaining (%) 100 | 100 . . Volleys Fired 55 | 2 53 . Largest 2 | 2 2 . Hottest 123 | 70 123 . Shots Fired 100 | 4 96 . Gun 52 | 4 48 . Cannon 39 | . 39 . Launcher 2 | . 2 . Special 7 | . 7 . Kinetic 50 | 2 48 . Thermal 48 | 2 46 . Explosive 2 | . 2 . Electromagnetic . | . . . Robot Hit Streak 7 | 4 7 . Robot Miss Streak 6 | . 6 . Penetration Max . | . . . Secondary Targets . | . . . Shots Hit Robots 70 | 4 46 20 Core Hits 27 | 2 23 2 Critical Kills . | . . . Critical Parts Destroyed 5 | . . 5 Critical Strikes 9 | . . 9 Smash 9 | . . 9 Melee Attacks 23 | . . 23 Impact 23 | . . 23 Slashing . | . . . Piercing . | . . . Sneak Attacks . | . . . Combat Hostiles . | . . . Follow-up Attacks . | . . . Damage Inflicted 2061 | 38 1183 840 Guns 285 | 38 247 . Cannons 397 | . 397 . Explosions 535 | . 535 . Melee 840 | . . 840 Ramming 4 | . 4 . Kinetic 260 | 13 247 . Thermal 422 | 25 397 . Explosive 535 | . 535 . Electromagnetic . | . . . Impact 840 | . . 840 Slashing . | . . . Piercing . | . . . Highest Corruption . | . . . Average Corruption . | . . . Corruption Purged . | . . . Corruption Blocked . | . . . Overload Shots . | . . . Overflow Damage 250 | . 33 217 Projectiles . | . . . Explosions 33 | . 33 . Melee 217 | . . 217 Knockbacks 10 | . . 10 Impact 10 | . . 10 Kinetic . | . . . Secondary . | . . . Self-Inflicted Damage 161 | . 161 . Shots 2 | . 2 . Rammed . | . . . Targets Rammed 1 | . 1 . Kicked 1 | . 1 . Crushed . | . . . Highest Temperature 202 | 40 202 . Average Temperature 62 | 20 63 . Received Heat Transfer 249 | . 63 186 Siege Activations . | . . . Robots Corrupted 3 | . . 3 Combat Hostiles 3 | . . 3 Parts Fried 1 | . . 1 Impact Corruptions 6 | . . 6 Robots Melted . | . . . Combat Hostiles . | . . . Parts Melted 1 | . 1 . Heat Transferred 888 | 74 814 . Parts Sabotaged . | . . . Parts Stolen . | . . . Parts Stripped . | . . . Power Chain Reactions . | . . . Alert | -11 -10 -10 ------- Run | Yrd Mat Sub Peak Influence 337 | 5 337 . Initial 3 | . 3 . Average 200 | 1 223 . Maximum Alert Level 1 | . 1 . Low Security (%) 37 | 100 29 . Level 1 62 | . 70 . Level 2 . | . . . Level 3 . | . . . Level 4 . | . . . Level 5 . | . . . High Security . | . . . Max Security . | . . . Squads Dispatched 1 | . 1 . Investigation 1 | . 1 . Extermination . | . . . Reinforcement . | . . . Assault . | . . . Garrison . | . . . Intercept . | . . . Searches Triggered . | . . . Construction Impeded . | . . . Haulers Reinforced . | . . . Active Scanning Responses . | . . . Cargo Convoy Interrupts . | . . . Stealth | -11 -10 -10 --------- Run | Yrd Mat Sub Distress Signals . | . . . Communications Jammed . | . . . Distress Signals . | . . . Times Spotted 23 | . 17 6 Peak Tracking Total 4 | . 4 3 Tactical Retreats . | . . . Traps | -11 -10 -10 ------- Run | Yrd Mat Sub Traps Triggered 1 | . 1 . Indirectly . | . . . Trap Hack Attempts . | . . . Triggered . | . . . Disarmed . | . . . Reprogrammed . | . . . Reused . | . . . Traps Extracted . | . . . Installed . | . . . Triggered . | . . . Machines | -11 -10 -10 ---------- Run | Yrd Mat Sub Machines Disabled 4 | . 4 . Max in Single Turn 2 | . 2 . Machines Repaired . | . . . Machines Dismantled . | . . . Machines Sabotaged . | . . . Overloaded Fab Kills . | . . . Hacking | -11 -10 -10 --------- Run | Yrd Mat Sub Machines Accessed 5 | . 5 . Terminals 5 | . 5 . Fabricators . | . . . Repair Stations . | . . . Recycling Units . | . . . Scanalyzers . | . . . Garrison Access . | . . . Total Hacks 15 | . 15 . Successful 7 | . 7 . Failed 8 | . 8 . Catastrophic 1 | . 1 . Database Lockouts . | . . . Manual 11 | . 11 . Terminals 15 | . 15 . Fabricators . | . . . Repair Stations . | . . . Recycling Units . | . . . Scanalyzers . | . . . Garrison Access . | . . . Terminal Hacks 4 | . 4 . Robot Analysis 2 | . 2 . Prototype ID Bank 1 | . 1 . Hauler Manifests 1 | . 1 . Fabricator Hacks . | . . . Repair Station Hacks . | . . . Recycling Unit Hacks . | . . . Scanalyzer . | . . . Garrison Access Hacks . | . . . Unauthorized Hacks 3 | . 3 . Terminals 3 | . 3 . Assimilate 1 | . 1 . Botnet 2 | . 2 . Fabricators . | . . . Repair Stations . | . . . Recycling Units . | . . . Scanalyzers . | . . . Garrison Access . | . . . Data Cores Recovered . | . . . Used . | . . . Hacking Detections 5 | . 5 . Full Trace Events 1 | . 1 . Feedback Events . | . . . Feedback Blocked . | . . . Robot Schematics Acquired . | . . . Robots Built . | . . . Authchips . | . . . Time . | . . . Total Robot Build Rating . | . . . Part Schematics Acquired . | . . . Parts Built . | . . . Authchips . | . . . Time . | . . . Total Part Build Rating . | . . . Parts Repaired . | . . . Time . | . . . Parts Recycled . | . . . Recycled Matter . | . . . Retrieved Matter . | . . . Retrieved Components . | . . . Parts Scanalyzed . | . . . Part Schematics Acquired . | . . . Parts Damaged . | . . . Bothacking | -11 -10 -10 ------------ Run | Yrd Mat Sub Used RIF Installer . | . . . Robots Hacked . | . . . Non-combat . | . . . Combat . | . . . Robot Hacks Applied . | . . . Relay Couplers Released . | . . . Fabnet Peak Effective % . | . . . Robots Rewired . | . . . Allies Hacked . | . . . Hacks Repelled . | . . . Allies | -11 -10 -10 -------- Run | Yrd Mat Sub Total Allies . | . . . Largest Group . | . . . Highest-Rated Group . | . . . Highest-Rated Ally . | . . . Total Orders . | . . . Ally Attacks . | . . . Total Damage . | . . . Kills . | . . . Allies Corrupted . | . . . Allies Melted . | . . . Intel | -11 -10 -10 ------- Run | Yrd Mat Sub Robot Analysis Total 2 | . 2 . Derelict Logs Recovered . | . . . Drone Launches . | . . . Drone Recoveries . | . . . Exploration | -11 -10 -10 ------------- Run | Yrd Mat Sub Turns Passed 1036 | 78 668 290 Spaces Moved 485 | 50 282 153 Core 3 | 3 . . Treads . | . . . Legs 482 | 47 282 153 Wheels . | . . . Hover . | . . . Flight . | . . . Fastest Speed 50 | 50 120 120 Average Speed 152 | 115 167 136 Slowest Speed 190 | 120 190 190 Overloaded Moves . | . . . Propulsion Burnouts . | . . . Robots Hopped . | . . . Cave-ins Triggered . | . . . Exploration Rate (%) 28 | 4 62 18 Regions Visited 2 Branch Regions 1 Pre-discovered Areas . | . . . Known Exits Taken . | . . . Unknown Exits Taken 2 | 1 1 . Scrap Searched . | . . . Spaces Dug 2 | . 2 . Terrain Destroyed 58 | . 58 . Melee . | . . . Projectile 2 | . 2 . AOE 56 | . 56 . Terrain Rammed . | . . . Walls Destroyed . | . . . Machines Disabled . | . . . Actions | -11 -10 -10 --------- Run | Yrd Mat Sub Total 625 | 63 374 188 Wait 10 | 1 7 2 Move 483 | 49 281 153 Hop . | . . . Pick Up 20 | 4 13 3 Fast Attach 8 | 7 . 1 Attach 5 | . 1 4 Detach . | . . . Swap 10 | . 9 1 Drop 10 | . 9 1 Fire 55 | 2 53 . Melee 23 | . . 23 Ram . | . . . Kick 1 | . 1 . Crush . | . . . Escape Stasis . | . . . Rewire . | . . . Trap . | . . . Miscellaneous . | . . . Route ------- -11/Scrapyard -10/Materials (discovered 3 exits: [*Min x2] / [*Sub]) -10/Subcaves (discovered 1 exit: [*Mat]) History --------- Turn | Location | Event 13 | -11/Scrapyard | Discovered new exit (range 15) 79 | -11/Scrapyard | Entered Materials 321 | -10/Materials | Build established: Mutant 328 | -10/Materials | Discovered new exit (range 16) 643 | -10/Materials | Discovered new exit (range 15) 741 | -10/Materials | Discovered new exit (range 4) 747 | -10/Materials | Entered Subcaves 820 | -10/Subcaves | Ambushed by Subdwellers from Twisted Machinery 821 | -10/Subcaves | Ambushed by Subdweller buried in earth 838 | -10/Subcaves | Core integrity fell below 50% 868 | -10/Subcaves | Lost 5 parts (1p2n1u1w) 987 | -10/Subcaves | Lost 3 parts (2n1w) 996 | -10/Subcaves | Discovered new exit (range 14) 1021 | -10/Subcaves | Core integrity fell below 20% 1037 | -10/Subcaves | Destroyed by S2-FBL(R) with Subdweller Laser Last Messages --------------- 00942_ VO-0EU(R) misfires. 00945_ GL-7H6(R) knocked back. 00948_ Mining Laser destroyed. 00952_ VO-0EU(R) misfires. 00952_ VO-0EU(R) destroyed. 00955_ Destroyed Sub. Optics. 00955_ GL-7H6(R) system corrupted by crushing effect. 00955_ GL-7H6(R) knocked back. 00956_ Aluminum Leg destroyed. 00958_ GL-7H6(R) misfires. 00960_ GL-7H6(R) knocked back. 00963_ GL-7H6(R) suffers critical hit (Smash). 00963_ Destroyed Sub. Power Source. 00963_ GL-7H6(R) system corrupted by crushing effect. 00964_ GL-7H6(R) system terminally corrupted. 00964_ Disposable Heat Sink fried. 00966_ Acquired 5 matter. 00996_ EXIT=FOUND 01019_ S2-FBL(R) suffers critical hit (Smash). 01019_ S2-FBL(R) knocked back. Map ----- +----------------------------------------------------+ | ???????????????????????????????????? | | ???????????????????????????????????? | | ???????????????????????????????????? | | ???????????????????????????????????? | | ???????????????????????????????????? | | ???????????????????????????????????? | | ???????????????????????????????????? | | ???????????????????????????????????? | | ???????????????????????????????????? | | ???????????????????????????????????? | | ???????????????????????????????????? | | ????????????????#??????????????????? | | ???????????????? ##????????????????? | | ???????????????? #????????????????? | | ???????????????? ##???????????????? | | ???????????????? ##??????????????? | | ????????????????# #??????????????? | | ????????????????# #??????????????? | | ????????????????# < #??????????????? | | ????????????????# #??????????????? | | ????????????##### #??????????????? | | ????????????# #??????????????? | | ???????????### #??????????????? | | ??????????##<#< ##?????????????? | | ????????# # ##????????????? | | ????????#